fUST/lending_fUST_20260223
["ID","MTS","AMOUNT","RATE_DAILY","PERIOD"]
[406376453,1771835438263,-504.96372398,0.00024954,2]
[406376455,1771835438272,-500.0,0.00024954,2]
[406376458,1771835438282,-500.0,0.00024954,2]
[406376460,1771835438291,-500.0,0.00024954,2]
[406376461,1771835438300,-500.0,0.00024954,2]
[406376464,1771835438310,-500.0,0.00024954,2]
[406376466,1771835438319,-500.0,0.00024954,2]
[406376467,1771835438329,-602.36400888,0.00024954,2]
[406376469,1771835438339,-409.00334873,0.00024954,2]
[406376471,1771835438348,-500.0,0.00024954,2]
[406376474,1771835438358,-500.0,0.00024954,2]
[406376476,1771835438367,-500.0,0.00024954,2]
[406376478,1771835438377,-500.0,0.00024954,2]
[406376480,1771835438386,-500.0,0.00024954,2]
[406376482,1771835438396,-500.0,0.00024954,2]
[406376484,1771835438406,-500.0,0.00024954,2]
[406376485,1771835438416,-500.0,0.00024954,2]
[406376488,1771835438426,-500.0,0.00024954,2]
[406376490,1771835438436,-500.0,0.00024954,2]
[406376491,1771835438446,-500.0,0.00024954,2]
[406376493,1771835438455,-391.00960199,0.00024954,2]
[406376495,1771835438465,-500.0,0.00024954,2]
[406376497,1771835438474,-500.0,0.00024954,2]
[406376499,1771835438484,-500.0,0.00024954,2]
[406376501,1771835438493,-551.3233599,0.00024954,2]
[406376503,1771835438503,-500.0,0.00024954,2]
[406376505,1771835438515,-500.0,0.00024954,2]
[406376507,1771835438525,-500.0,0.00024954,2]
[406376509,1771835438538,-500.0,0.00024954,2]
[406376511,1771835438547,-500.0,0.00024954,2]
[406376513,1771835438556,-500.0,0.00024954,2]
[406376515,1771835438565,-500.0,0.00024954,2]
[406376517,1771835438576,-500.0,0.00024954,2]
[406376519,1771835438586,-500.0,0.00024954,2]
[406376521,1771835438595,-500.0,0.00024954,2]
[406376523,1771835438607,-500.0,0.00024954,2]
[406376525,1771835438616,-320.34533041,0.00024954,2]
[406376527,1771835438626,-500.0,0.00024954,2]
[406376529,1771835438635,-500.0,0.00024954,16]
[406376531,1771835438644,-500.0,0.00024954,2]
[406376533,1771835438654,-8080.4881113,0.00024955,2]
[406376534,1771835438665,-2770.9795831,0.00024955,2]
[406376536,1771835438674,-500.0,0.00025228,2]
[406376538,1771835438684,-2062.3143893,0.00025399,2]
[406376540,1771835438694,-500.0,0.00025502,2]
[406376542,1771835438703,-525.80335472,0.00025776,2]
[406376544,1771835438713,-339.0,0.00026449,2]
[406376547,1771835438724,-656.78428174,0.00026658,2]
[406376549,1771835438735,-500.0,0.00026731,2]
[406376551,1771835438745,-381.73569588,0.00026953,2]
[406376553,1771835438754,-206.32562746,0.00027236,2]
[406376555,1771835438763,-500.0,0.00027396,2]
[406376557,1771835438773,-500.0,0.00027397,2]
[406376558,1771835438782,-500.0,0.00027397,2]
[406376561,1771835438792,-500.0,0.00027397,2]
[406376562,1771835438802,-500.0,0.00027397,2]
[406376564,1771835438812,-500.0,0.00027397,2]
[406376566,1771835438822,-500.0,0.00027397,2]
[406376568,1771835438832,-500.0,0.00027397,2]
[406376570,1771835438842,-500.0,0.00027397,2]
[406376572,1771835438852,-500.0,0.00027397,2]
[406376574,1771835438861,-500.0,0.00027397,2]
[406376576,1771835438871,-500.0,0.00027397,2]
[406376578,1771835438881,-500.0,0.00027397,2]
[406376580,1771835438891,-500.0,0.00027397,2]
[406376582,1771835438903,-500.0,0.00027397,2]
[406376584,1771835438914,-500.0,0.00027397,2]
[406376586,1771835438924,-500.0,0.00027397,2]
[406376597,1771835439023,-500.0,0.00027397,2]
[406376599,1771835439034,-500.0,0.00027397,2]
[406376601,1771835439044,-500.0,0.00027397,2]
[406376603,1771835439055,-500.0,0.00027397,2]
[406376605,1771835439065,-500.0,0.00027397,2]
[406376607,1771835439075,-500.0,0.00027397,2]
[406376609,1771835439085,-500.0,0.00027397,2]
[406376611,1771835439095,-500.0,0.00027397,2]
[406376613,1771835439105,-500.0,0.00027397,2]
[406376615,1771835439115,-500.0,0.00027397,2]
[406376617,1771835439125,-500.0,0.00027397,2]
[406376619,1771835439135,-500.0,0.00027397,2]
[406376621,1771835439146,-500.0,0.00027397,2]
[406376623,1771835439156,-500.0,0.00027397,2]
[406376625,1771835439166,-500.0,0.00027397,2]
[406376627,1771835439176,-500.0,0.00027397,2]
[406376629,1771835439186,-500.0,0.00027397,2]
[406376631,1771835439196,-500.0,0.00027397,2]
[406376633,1771835439206,-500.0,0.00027397,2]
[406376635,1771835439215,-500.0,0.00027397,2]
[406376637,1771835439225,-500.0,0.00027397,2]
[406376639,1771835439235,-500.0,0.00027397,2]
[406376641,1771835439246,-295.86098812,0.00027397,2]
[406376643,1771835439255,-500.0,0.00027397,2]
[406376645,1771835439265,-500.0,0.00027397,2]
[406376647,1771835439275,-867.67127951,0.00027432,2]
[406376649,1771835439285,-500.0,0.00027577,2]
[406376651,1771835439295,-209.40437684,0.00027577,2]
[406376653,1771835439304,-500.0,0.00027577,2]
[406376655,1771835439314,-217.15233878,0.00027577,2]
[406376657,1771835439324,-225.18697532,0.00027577,2]
[406376659,1771835439333,-325.8644315,0.00027577,2]
[406376661,1771835439342,-233.51889341,0.00027577,2]
[406376663,1771835439352,-242.15909246,0.00027577,2]
[406376665,1771835439361,-251.11897888,0.00027577,2]
[406376667,1771835439371,-260.4103811,0.00027577,2]
[406376669,1771835439381,-270.0455652,0.00027577,2]
[406376671,1771835439390,-280.03725112,0.00027577,2]
[406376673,1771835439399,-290.39862941,0.00027577,2]
[406376674,1771835439409,-301.1433787,0.00027577,2]
[406376676,1771835439418,-359.05,0.00027669,2]
[406376678,1771835439428,-604.32,0.00027999,2]
[406376681,1771835439438,-598.60558441,0.00027999,10]
[406376683,1771835439447,-500.0,0.00027999,2]
[406376685,1771835439456,-744.15762423,0.00028,3]
[406376687,1771835439466,-744.15762423,0.00028,3]
[406376689,1771835439475,-744.15762423,0.00028,7]
[406376691,1771835439484,-151.0,0.00028,7]
[406376693,1771835439494,-151.0,0.00028,7]
[406376695,1771835439503,-151.0,0.00028,7]
[406376697,1771835439513,-2316.32078278,0.00028,2]
[406376699,1771835439522,-168.5865186,0.00028073,5]
[406376701,1771835439536,-600.0,0.00028242,30]
[406376703,1771835439545,-413.94594995,0.00028371,2]
[406376705,1771835439555,-473.08108566,0.00028371,2]
[406376707,1771835439564,-287.21741704,0.0002867,2]
[406376709,1771835439575,-328.24847662,0.0002867,2]
[406376711,1771835439584,-157.87965503,0.00028941,5]
[406376713,1771835439594,-168.58651859,0.00028941,5]
[406376715,1771835439605,-364.42707534,0.00029247,2]
[406376717,1771835439614,-348.0,0.00029281,2]
[406376719,1771835439624,-499.80258901,0.000298,16]
[406376720,1771835439633,-662.26670423,0.0003,30]
[406376723,1771835439643,-1803.0006063,0.00030049,2]
[406376725,1771835439652,-178.36853676,0.00030275,2]
[406376727,1771835439663,-435.83309735,0.00030479,2]
[406376729,1771835439673,-394.78167854,0.00030787,2]
[406376731,1771835439683,-204.485911,0.00030838,2]
[406376733,1771835439692,-720.0,0.00031066,30]
[406376735,1771835439701,-1209.77660926,0.00031157,2]
[406376737,1771835439710,-402.303814,0.00031186,2]
[406376739,1771835439720,-310.431996,0.00031237,2]
[406376741,1771835439729,-151.0,0.0003171,7]
[406376743,1771835439738,-151.0,0.0003171,7]
[406376745,1771835439748,-151.0,0.0003171,7]
[406376746,1771835439757,-2696.39,0.00031803,10]
[406376749,1771835439767,-2246.99,0.00031803,10]
[406376751,1771835439777,-25155.95149411,0.00031813,2]
[406376753,1771835439787,-200.0,0.00031847,30]
[406376755,1771835439796,-500.0,0.00031869,7]
[406376757,1771835439805,-500.0,0.00031988,2]
[406376759,1771835439814,-604.32,0.00031989,2]
[406376761,1771835439824,-151.0,0.0003199,7]
[406376762,1771835439833,-310.431996,0.0003199,2]
[406376764,1771835439843,-604.32,0.00031997,2]
[406376767,1771835439852,-604.32,0.00031997,2]
[406376769,1771835439862,-172.77400172,0.00031997,10]
[406376771,1771835439871,-604.32,0.00031998,2]
[406376773,1771835439881,-2000.0,0.00031998,2]
[406376775,1771835439891,-9000.0,0.00031998,2]
[406376777,1771835439900,-5052.16850778,0.00031998,2]
[406376778,1771835439910,-151.0,0.00031998,7]
[406376781,1771835439919,-151.0,0.00031998,7]
[406376782,1771835439929,-208.445788,0.00031998,7]
[406376784,1771835439938,-500.0,0.00031998,2]
[406376786,1771835439947,-200.0,0.00031999,10]
[406376788,1771835439957,-604.32,0.00031999,2]
[406376790,1771835439967,-151.0,0.00031999,7]
[406376792,1771835439976,-500.0,0.00031999,2]
[406376794,1771835439985,-27713.71809745,0.00032,30]
[406376796,1771835439993,-177.718211,0.00032,7]
[406376798,1771835440003,-151.0,0.00032,7]
[406376800,1771835440012,-151.0,0.00032,7]
[406376802,1771835440022,-151.0,0.00032,7]
[406376804,1771835440031,-11265.9774492,0.000321,3]
[406376806,1771835440040,-204.485911,0.00032136,2]
[406376808,1771835440050,-500.0,0.0003285,7]
[406376810,1771835440059,-200.0,0.00032876,10]
[406376812,1771835440068,-6519.5,0.000329,14]
[406376814,1771835440077,-3721.54312833,0.00033,120]
[406376816,1771835440086,-744.15762423,0.00033043,2]
[406376818,1771835440095,-204.485911,0.00033434,2]
[406376820,1771835440104,-604.32,0.00033438,2]
[406376822,1771835440113,-500.0,0.00033958,7]
[406376824,1771835440123,-500.0,0.00033997,2]
[406376826,1771835440132,-744.15762423,0.00033998,7]
[406376828,1771835440141,-864.0,0.00034173,30]
[406376830,1771835440150,-2062.31438924,0.00034613,2]
[406376832,1771835440160,-204.485911,0.00034732,2]
[406376834,1771835440170,-735.87276131,0.00035,120]
[406376836,1771835440179,-13103.28810098,0.00035,120]
[406376838,1771835440188,-1209.77660925,0.000351,2]
[406376840,1771835440197,-346.068895,0.00035482,2]
[406376842,1771835440206,-500.0,0.00035573,30]
[406376844,1771835440215,-246.53,0.00035597,3]
[406376846,1771835440225,-739.62,0.00035597,3]
[406376848,1771835440234,-1000.0,0.00035597,30]
[406376849,1771835440243,-1000.0,0.00035597,30]
[406376852,1771835440252,-1000.0,0.00035597,30]
[406376853,1771835440262,-1000.0,0.00035597,30]
[406376855,1771835440271,-1000.0,0.00035597,30]
[406376857,1771835440281,-1000.0,0.00035597,30]
[406376859,1771835440289,-1000.0,0.00035597,30]
[406376861,1771835440299,-1000.0,0.00035597,30]
[406376864,1771835440308,-1000.0,0.00035597,30]
[406376866,1771835440318,-1000.0,0.00035597,30]
[406376868,1771835440327,-1000.0,0.00035597,30]
[406376870,1771835440336,-446.053695,0.00035597,30]
[406376872,1771835440346,-151.0,0.00035597,31]
[406376874,1771835440355,-151.0,0.00035597,31]
[406376875,1771835440365,-200.0,0.00035756,39]
[406376877,1771835440373,-204.485911,0.0003603,2]
[406376879,1771835440382,-500.0,0.00036308,30]
[406376881,1771835440391,-500.0,0.00036773,30]
[406376883,1771835440400,-284.23800131,0.00036799,2]
[406376885,1771835440409,-493.06,0.00036967,3]
[406376887,1771835440418,-6519.5,0.00037,14]
[406376889,1771835440429,-500.0,0.00037038,30]
[406376891,1771835440437,-500.0,0.0003716,30]
[406376894,1771835440449,-204.485911,0.00037329,2]
[406376896,1771835440458,-310.431996,0.00037513,3]
[406376897,1771835440467,-500.0,0.00037523,2]
[406376900,1771835440477,-487.0,0.00037524,2]
[406376902,1771835440486,-487.0,0.00037524,2]
[406376903,1771835440495,-487.0,0.00037524,2]
[406376905,1771835440505,-487.0,0.00037524,2]
[406376907,1771835440514,-487.0,0.00037524,2]
[406376909,1771835440522,-487.0,0.00037524,2]
[406376911,1771835440536,-487.0,0.00037524,2]
[406376913,1771835440544,-487.0,0.00037524,2]
[406376916,1771835440555,-487.0,0.00037524,2]
[406376917,1771835440565,-487.0,0.00037524,2]
[406376919,1771835440574,-487.0,0.00037524,2]
[406376922,1771835440583,-487.0,0.00037524,2]
[406376923,1771835440592,-487.0,0.00037524,2]
[406376925,1771835440602,-673.39,0.00037524,2]
[406376928,1771835440612,-1000.0,0.0003759,30]
[406376929,1771835440621,-155.575,0.00038,50]
[406376931,1771835440630,-151.0,0.00038356,120]
[406376933,1771835440639,-151.0,0.00038356,120]
[406376935,1771835440648,-200.0,0.00038547,44]
[406376937,1771835440658,-500.0,0.00038717,30]
[406376939,1771835440667,-168.0,0.00038897,2]
[406376941,1771835440676,-1209.77660925,0.00039043,2]
[406376943,1771835440686,-5937.8302286,0.000396,4]
[406376946,1771835440700,-336.00839522,0.000396,4]
[406376949,1771835440717,-4630.92129051,0.000396,4]
[406377006,1771835443222,-6263.00995837,0.000396,4]
[406377090,1771835791951,6449.51581545,0.0001,2]
[406377091,1771835791975,9064.20576583,0.0001,2]
[406377092,1771835792000,10000.0,0.0001,2]
[406377093,1771835792022,10000.0,0.0001,2]
[406377094,1771835792046,8474.28,0.0001,2]
[406377117,1771835879955,190.5,6.993e-05,20]
[406377118,1771835880236,190.5,6.993e-05,20]
[406377120,1771836083047,4119.45687967,9.501e-05,2]
[406377122,1771836273990,412.47389539,9.501e-05,2]
[406377125,1771836404017,10000.0,9.501e-05,2]
[406377126,1771836434120,-150.0,9.65e-05,2]
[406377127,1771836434141,-121.06850072,9.698e-05,2]
[406377130,1771836548110,-178.93149928,9.698e-05,2]
[406377131,1771836548129,-256.0,9.698e-05,2]
[406377132,1771836548150,-1200.0,9.698e-05,2]
[406377133,1771836548170,-150.0,9.699e-05,2]
[406377134,1771836548189,-300.0,9.699e-05,2]
[406377135,1771836548212,-300.0,9.699e-05,2]
[406377136,1771836548232,-300.0,9.699e-05,2]
[406377137,1771836548251,-18187.63758286,9.7e-05,2]
[406377138,1771836548270,-4672.78561653,9.999e-05,2]
[406377139,1771836548290,-300.0,9.999e-05,2]
[406377140,1771836548309,-218.47812378,9.999e-05,2]
[406377141,1771836548331,-500.0,9.999e-05,2]
[406377142,1771836548351,-500.0,9.999e-05,2]
[406377143,1771836548371,-500.0,9.999e-05,2]
[406377144,1771836548391,-500.0,9.999e-05,2]
[406377145,1771836548412,-500.0,9.999e-05,2]
[406377146,1771836548432,-500.0,9.999e-05,2]
[406377147,1771836548456,-500.0,9.999e-05,2]
[406377148,1771836548476,-500.0,9.999e-05,2]
[406377149,1771836548496,-500.0,9.999e-05,2]
[406377150,1771836548517,-500.0,9.999e-05,2]
[406377151,1771836548537,-500.0,9.999e-05,2]
[406377152,1771836548558,-500.0,9.999e-05,2]
[406377153,1771836548577,-500.0,9.999e-05,2]
[406377154,1771836548597,-500.0,9.999e-05,2]
[406377155,1771836548616,-500.0,9.999e-05,2]
[406377156,1771836548636,-588.01527904,9.999e-05,2]
[406377157,1771836548656,-500.0,9.999e-05,2]
[406377158,1771836548675,-500.0,9.999e-05,2]
[406377159,1771836548694,-500.0,9.999e-05,2]
[406377160,1771836548715,-500.0,9.999e-05,2]
[406377161,1771836548739,-500.0,9.999e-05,2]
[406377162,1771836548758,-199.00012645,9.999e-05,2]
[406377163,1771836548780,-500.0,9.999e-05,2]
[406377164,1771836548801,-500.0,9.999e-05,2]
[406377165,1771836548823,-500.0,9.999e-05,2]
[406377166,1771836548843,-500.0,9.999e-05,2]
[406377167,1771836548868,-500.0,9.999e-05,2]
[406377168,1771836548891,-500.0,9.999e-05,2]
[406377169,1771836548914,-500.0,9.999e-05,2]
[406377170,1771836548938,-500.0,9.999e-05,2]
[406377171,1771836548960,-500.0,9.999e-05,2]
[406377172,1771836548982,-500.0,9.999e-05,2]
[406377173,1771836549003,-500.0,9.999e-05,2]
[406377174,1771836549024,-500.0,9.999e-05,2]
[406377175,1771836549046,-500.0,9.999e-05,2]
[406377176,1771836549066,-500.0,9.999e-05,2]
[406377177,1771836549087,-500.0,9.999e-05,2]
[406377178,1771836549108,-500.0,9.999e-05,2]
[406377179,1771836549129,-500.0,9.999e-05,2]
[406377180,1771836549150,-500.0,9.999e-05,2]
[406377181,1771836549172,-500.0,9.999e-05,2]
[406377182,1771836549193,-500.0,9.999e-05,2]
[406377183,1771836549214,-500.0,9.999e-05,2]
[406377184,1771836549235,-500.0,9.999e-05,2]
[406377185,1771836549255,-500.0,9.999e-05,2]
[406377186,1771836549276,-279.09287388,9.999e-05,2]
[406377187,1771836549297,-500.0,9.999e-05,2]
[406377188,1771836549318,-500.0,9.999e-05,2]
[406377189,1771836549339,-500.0,9.999e-05,2]
[406377190,1771836549359,-500.0,9.999e-05,2]
[406377191,1771836549380,-500.0,9.999e-05,2]
[406377192,1771836549402,-500.0,9.999e-05,2]
[406377193,1771836549423,-500.0,9.999e-05,2]
[406377194,1771836549445,-500.0,9.999e-05,2]
[406377195,1771836549466,-500.0,9.999e-05,2]
[406377196,1771836549486,-500.0,9.999e-05,2]
[406377197,1771836549507,-539.28703092,9.999e-05,2]
[406377198,1771836549528,-500.0,9.999e-05,2]
[406377199,1771836549548,-500.0,9.999e-05,2]
[406377200,1771836549570,-500.0,9.999e-05,2]
[406377201,1771836549668,-473.5680754,9.999e-05,2]
[406377202,1771836549691,-500.0,9.999e-05,2]
[406377203,1771836549715,-500.0,9.999e-05,2]
[406377204,1771836549734,-500.0,9.999e-05,2]
[406377205,1771836549753,-500.0,9.999e-05,2]
[406377206,1771836549773,-500.0,9.999e-05,2]
[406377207,1771836549793,-26409.63565012,0.0001,2]
[406377208,1771836549823,-143377.4727686,0.0001,2]
[406377209,1771836549843,-519.22004041,0.00010099,2]
[406377210,1771836549867,-300.0,0.00010199,2]
[406377211,1771836549886,-300.0,0.00010199,2]
[406377212,1771836549909,-300.0,0.00010199,2]
[406377213,1771836549931,-300.0,0.00010199,2]
[406377214,1771836549951,-300.0,0.00010199,2]
[406377215,1771836549969,-300.0,0.00010199,2]
[406377216,1771836549988,-300.0,0.00010199,2]
[406377217,1771836550007,-300.0,0.00010199,2]
[406377218,1771836550027,-300.0,0.00010199,2]
[406377219,1771836550049,-300.0,0.00010199,2]
[406377220,1771836550069,-300.0,0.00010199,2]
[406377221,1771836550089,-300.0,0.00010199,2]
[406377222,1771836550109,-300.0,0.00010199,2]
[406377223,1771836550129,-300.0,0.00010199,2]
[406377224,1771836550151,-300.0,0.00010199,2]
[406377225,1771836550171,-231.80007468,0.00010199,2]
[406377226,1771836553105,-368.19992532,0.00010199,2]
[406377227,1771836553124,-350.0,0.00010668,2]
[406377228,1771836553145,-1680.0,0.00010668,2]
[406377229,1771836553169,-380.0,0.00010669,2]
[406377230,1771836553189,-420.0,0.00010669,2]
[406377231,1771836553212,-720.0,0.00011219,2]
[406377232,1771836553231,-177.0,0.00011699,2]
[406377233,1771836553250,-864.0,0.00011735,2]
[406377234,1771836553270,-587.0,0.00011736,2]
[406377235,1771836553290,-864.0,0.00012341,2]
[406377236,1771836553310,-579.0,0.00012909,2]
[406377237,1771836553329,-638.9562083,0.00013273,2]
[406377238,1771836553349,-501.8810816,0.00013273,2]
[406377239,1771836553368,-500.0,0.00013273,2]
[406377240,1771836553387,-500.0,0.00013273,2]
[406377241,1771836553408,-1000.0,0.00013575,2]
[406377242,1771836553428,-500.0,0.00013698,2]
[406377243,1771836553448,-500.0,0.00013698,2]
[406377244,1771836553468,-500.0,0.00013698,2]
[406377245,1771836553487,-500.0,0.00013698,2]
[406377246,1771836553507,-500.0,0.00013698,2]
[406377247,1771836553527,-500.0,0.00013698,2]
[406377248,1771836553546,-623.41980092,0.00013698,2]
[406377249,1771836553566,-558.42,0.00013698,2]
[406377250,1771836553586,-204.0,0.00013699,2]
[406377251,1771836553606,-4040.5493932,0.00013699,2]
[406377252,1771836553625,-150.0,0.000137,2]
[406377253,1771836553644,-258.17,0.000142,2]
[406377254,1771836553666,-1000.0,0.00014932,2]
[406377255,1771836553686,-244.0,0.00014932,2]
[406377256,1771836553705,-551.576814,0.00015351,2]
[406377257,1771836553726,-231.0,0.00015699,2]
[406377258,1771836553747,-1000.0,0.00016426,2]
[406377259,1771836553767,-492.0,0.00016426,2]
[406377260,1771836553787,-258.0,0.00017699,2]
[406377261,1771836553806,-162.16,0.00018053,3]
[406377262,1771836553826,-1000.0,0.00018068,2]
[406377263,1771836553846,-791.0,0.00018068,2]
[406377264,1771836553868,-369.95824109,0.00018388,2]
[406377265,1771836554142,-500.0,0.00013273,2]
[406377266,1771836554163,-75.19816555,0.00013821,2]
[406377267,1771836555176,-924.80183445,0.00013821,2]
[406377268,1771836555196,-1500.0,0.00014368,2]
[406377269,1771836555216,-500.0,0.00014916,2]
[406377270,1771836555236,-149.26179932,0.00018388,2]
[406377271,1771836555258,-274.49407305,0.00019875,2]
[406377272,1771836561114,-500.0,9.999e-05,2]
[406377273,1771836561136,-500.0,9.999e-05,2]
[406377274,1771836561159,-500.0,9.999e-05,2]
[406377275,1771836561179,-500.0,9.999e-05,2]
[406377276,1771836561200,-500.0,9.999e-05,2]
[406377277,1771836561221,-500.0,9.999e-05,2]
[406377278,1771836561241,-500.0,9.999e-05,2]
[406377279,1771836561262,-500.0,9.999e-05,2]
[406377280,1771836561281,-191.7893132,0.00013273,2]
[406377281,1771836564109,-423.5680754,9.999e-05,2]
[406377282,1771836564130,-500.0,9.999e-05,2]
[406377283,1771836564152,-500.0,9.999e-05,2]
[406377284,1771836564174,-367.85244024,9.999e-05,2]
[406377596,1771836637986,-560.0,9.999e-05,2]
[406377598,1771836637996,-308.2106868,0.00013273,2]
[406377600,1771836638006,-612.12899041,0.00013273,2]
[406377602,1771836638015,-1652.6101806,0.00013636,2]
[406377604,1771836638024,-866.94833323,0.0001365,2]
[406377606,1771836638035,-500.0,0.00013698,2]
[406377608,1771836638043,-375.26017329,0.00013698,2]
[406377610,1771836638053,-1000.0,0.00013821,2]
[406377612,1771836638062,-1500.0,0.00014368,2]
[406377613,1771836638071,-1652.6101806,0.0001532,2]
[406377615,1771836638080,-774.29728083,0.00017004,2]
[406377619,1771836638108,-878.31289977,0.00017004,2]
[406377621,1771836638117,-1652.6101806,0.00018689,2]
[406377623,1771836638127,-200.0,0.00024317,9]
[406377625,1771836638136,-791.6015898,0.000248,2]
[406377627,1771836638145,-500.0,0.00024899,2]
[406377629,1771836638154,-324.72033678,0.00024899,2]
[406377631,1771836638163,-500.0,0.00024899,2]
[406377633,1771836638173,-500.0,0.00024899,2]
[406377635,1771836638182,-208.42024171,0.00024899,2]
[406377637,1771836638191,-398.66836434,0.00024899,2]
[406377639,1771836638200,-500.0,0.00024899,2]
[406377641,1771836638209,-500.0,0.00024899,2]
[406377643,1771836638219,-500.0,0.00024899,2]
[406377645,1771836638228,-598.04730048,0.00024899,2]
[406377647,1771836638237,-500.0,0.00024899,2]
[406377649,1771836638246,-337.69855899,0.00024899,2]
[406377651,1771836638255,-500.0,0.00024899,2]
[406377653,1771836638265,-500.0,0.00024899,2]
[406377655,1771836638274,-500.0,0.00024899,2]
[406377657,1771836638283,-500.0,0.00024899,2]
[406377659,1771836638293,-500.0,0.00024899,2]
[406377661,1771836638302,-162.98763085,0.00024899,2]
[406377663,1771836638311,-500.0,0.00024899,2]
[406377665,1771836638320,-500.0,0.00024899,2]
[406377667,1771836638330,-500.0,0.00024899,2]
[406377669,1771836638339,-500.0,0.00024899,2]
[406377671,1771836638348,-500.0,0.00024899,2]
[406377673,1771836638358,-500.0,0.00024899,2]
[406377675,1771836638367,-500.0,0.00024899,2]
[406377677,1771836638377,-500.0,0.00024899,2]
[406377679,1771836638386,-500.0,0.00024899,2]
[406377681,1771836638396,-500.0,0.00024899,2]
[406377683,1771836638405,-500.0,0.00024899,2]
[406377685,1771836638414,-500.0,0.00024899,2]
[406377687,1771836638424,-500.0,0.00024899,2]
[406377689,1771836638434,-500.0,0.00024899,2]
[406377691,1771836638446,-500.0,0.00024899,2]
[406377693,1771836638456,-500.0,0.00024899,2]
[406377695,1771836638466,-500.0,0.00024899,2]
[406377697,1771836638476,-498.22900117,0.00024899,2]
[406377699,1771836638486,-500.0,0.00024899,2]
[406377701,1771836638496,-500.0,0.00024899,2]
[406377704,1771836638505,-500.0,0.00024899,2]
[406377705,1771836638515,-21633.890439,0.000249,2]
[406377707,1771836638525,-500.0,0.00024953,2]
[406377709,1771836638534,-519.22004041,0.00026677,2]
[406377711,1771836638544,-500.0,0.00026708,7]
[406377713,1771836638554,-889.02,0.00026749,20]
[406377715,1771836638564,-500.0,0.00026952,2]
[406377717,1771836638574,-500.0,0.00026952,2]
[406377719,1771836638584,-500.0,0.00027396,2]
[406377721,1771836638593,-500.0,0.00027397,2]
[406377723,1771836638603,-500.0,0.00027397,2]
[406377725,1771836638612,-500.0,0.00027397,2]
[406377727,1771836638623,-500.0,0.00027397,2]
[406377730,1771836638632,-500.0,0.00027397,2]
[406377732,1771836638641,-500.0,0.00027397,2]
[406377734,1771836638651,-500.0,0.00027397,2]
[406377736,1771836638660,-500.0,0.00027397,2]
[406377738,1771836638670,-500.0,0.00027397,2]
[406377749,1771836638752,-500.0,0.00027397,2]
[406377752,1771836638779,-500.0,0.00027397,2]
[406377754,1771836638790,-500.0,0.00027397,2]
[406377756,1771836638800,-500.0,0.00027397,2]
[406377758,1771836638810,-500.0,0.00027397,2]
[406377760,1771836638820,-157.91502133,0.00027397,2]
[406377762,1771836638829,-500.0,0.00027397,2]
[406377764,1771836638839,-500.0,0.00027397,2]
[406377766,1771836638849,-500.0,0.00027397,2]
[406377768,1771836638861,-500.0,0.00027397,2]
[406377770,1771836638872,-500.0,0.00027397,2]
[406377772,1771836638882,-273.236,0.00027836,120]
[406377774,1771836638892,-600.0,0.00027944,30]
[406377776,1771836638903,-200.0,0.00028791,18]
[406377779,1771836638913,-209.40437684,0.0002926,2]
[406377781,1771836638923,-217.15233878,0.0002926,2]